fUST/lending_fUST_20250828
["ID","MTS","AMOUNT","RATE_DAILY","PERIOD"]
[381816554,1756357882163,-2500.0,0.00022364,2]
[381816555,1756357882172,-2500.0,0.00022364,2]
[381816556,1756357882181,-504.58132856,0.00022368,2]
[381816557,1756357882190,-481.73288359,0.00022368,2]
[381816558,1756357882199,-1500.0,0.00022368,2]
[381816559,1756357882209,-662.67725997,0.00022368,2]
[381816560,1756357882218,-2169.42,0.0002238,2]
[381816561,1756357882227,-639.46,0.0002238,2]
[381816562,1756357882236,-1495.6,0.0002238,2]
[381816563,1756357882245,-515.47,0.0002238,2]
[381816564,1756357882254,-8106.2296457,0.00022399,2]
[381816565,1756357882263,-151.0,0.000224,6]
[381816566,1756357882273,-168.0,0.0002241,2]
[381816567,1756357882282,-168.0,0.00022452,2]
[381816568,1756357882291,-720.0,0.00022455,20]
[381816569,1756357882303,-2500.0,0.00022464,2]
[381816570,1756357882312,-2500.0,0.00022464,2]
[381816571,1756357882321,-2500.0,0.00022464,2]
[381816572,1756357882330,-2500.0,0.00022464,2]
[381816573,1756357882340,-2500.0,0.00022464,2]
[381816574,1756357882351,-250.0,0.00022466,2]
[381816575,1756357882361,-480.0,0.00022476,2]
[381816576,1756357882370,-480.0,0.00022476,2]
[381816577,1756357882381,-786.65,0.00022476,2]
[381816578,1756357882390,-713.73,0.00022476,2]
[381816579,1756357882400,-480.0,0.00022476,2]
[381816580,1756357882409,-480.0,0.00022476,2]
[381816581,1756357882421,-311.46033941,0.00022476,2]
[381816582,1756357882432,-482.42456617,0.00022476,2]
[381816583,1756357882441,-480.0,0.00022476,2]
[381816584,1756357882451,-480.79,0.00022476,2]
[381816585,1756357882460,-480.0,0.00022476,2]
[381816586,1756357882470,-480.0,0.00022476,2]
[381816587,1756357882479,-648.17,0.00022476,2]
[381816588,1756357882488,-480.0,0.00022476,2]
[381816589,1756357882498,-480.0,0.00022476,2]
[381816590,1756357882507,-533.59,0.00022476,2]
[381816591,1756357882518,-480.0,0.00022476,2]
[381816592,1756357882528,-655.42,0.00022476,2]
[381816593,1756357882538,-480.0,0.00022476,2]
[381816594,1756357882548,-480.0,0.00022476,2]
[381816595,1756357882559,-944.76,0.00022476,2]
[381816596,1756357882570,-480.0,0.00022476,2]
[381816597,1756357882755,-480.0,0.00022476,2]
[381816598,1756357882772,-1375.55,0.00022476,2]
[381816599,1756357882782,-537.18,0.00022476,2]
[381816600,1756357882791,-504.38,0.00022476,2]
[381816601,1756357882801,-480.0,0.00022476,2]
[381816602,1756357882811,-790.41,0.00022476,2]
[381816603,1756357882821,-510.07,0.00022476,2]
[381816604,1756357882830,-480.0,0.00022476,2]
[381816605,1756357882839,-480.0,0.00022476,2]
[381816606,1756357882849,-498.02,0.00022476,2]
[381816607,1756357882858,-541.05,0.00022476,2]
[381816608,1756357882868,-487.28,0.00022476,2]
[381816609,1756357882877,-480.0,0.00022476,2]
[381816610,1756357882887,-633.32,0.00022476,2]
[381816611,1756357882896,-657.6,0.00022476,2]
[381816612,1756357882912,-480.0,0.00022476,2]
[381816613,1756357882921,-644.12,0.00022476,2]
[381816614,1756357882931,-560.98,0.00022476,2]
[381816615,1756357882940,-480.0,0.00022476,2]
[381816616,1756357882949,-574.0,0.00022476,2]
[381816617,1756357882959,-480.0,0.00022476,2]
[381816618,1756357882968,-502.35,0.00022476,2]
[381816619,1756357882978,-480.0,0.00022476,2]
[381816620,1756357882988,-480.0,0.00022476,2]
[381816621,1756357883002,-480.0,0.00022476,2]
[381816622,1756357883012,-1511.51,0.00022476,2]
[381816623,1756357883022,-497.56,0.00022476,2]
[381816624,1756357883031,-957.08,0.00022476,2]
[381816625,1756357883041,-1082.64,0.00022476,2]
[381816626,1756357883050,-527.16,0.00022476,2]
[381816627,1756357883059,-480.0,0.00022476,2]
[381816628,1756357883069,-480.0,0.00022476,2]
[381816629,1756357883079,-865.85,0.00022476,2]
[381816630,1756357883089,-564.92,0.00022476,2]
[381816631,1756357883098,-480.0,0.00022476,2]
[381816632,1756357883107,-496.05,0.00022476,2]
[381816633,1756357883116,-480.0,0.00022476,2]
[381816634,1756357883126,-480.0,0.00022476,2]
[381816635,1756357883135,-959.96,0.00022476,2]
[381816636,1756357883145,-480.0,0.00022476,2]
[381816637,1756357883157,-560.89,0.00022476,2]
[381816638,1756357883166,-480.0,0.00022476,2]
[381816639,1756357883175,-480.0,0.00022476,2]
[381816640,1756357883185,-516.82,0.00022476,2]
[381816641,1756357883195,-533.53,0.00022476,2]
[381816642,1756357883204,-480.0,0.00022476,2]
[381816643,1756357883213,-659.5,0.00022476,2]
[381816644,1756357883223,-480.0,0.00022476,2]
[381816645,1756357883232,-480.0,0.00022476,2]
[381816646,1756357883242,-480.83,0.00022476,2]
[381816647,1756357883252,-551.27,0.00022476,2]
[381816648,1756357883261,-480.0,0.00022476,2]
[381816649,1756357883270,-983.06,0.00022476,2]
[381816650,1756357883280,-480.0,0.00022476,2]
[381816651,1756357883289,-750.24,0.00022476,2]
[381816652,1756357883299,-519.97,0.00022476,2]
[381816653,1756357883308,-480.0,0.00022476,2]
[381816654,1756357883317,-2407.13,0.00022476,2]
[381816655,1756357883327,-1445.41,0.00022476,2]
[381816656,1756357883336,-1263.67,0.00022476,2]
[381816657,1756357883345,-480.0,0.00022476,2]
[381816658,1756357883354,-922.14,0.00022476,2]
[381816659,1756357883363,-3847.08,0.00022476,2]
[381816660,1756357883372,-480.0,0.00022476,2]
[381816661,1756357883383,-784.19,0.00022476,2]
[381816662,1756357883392,-1198.44,0.00022476,2]
[381816663,1756357883402,-480.0,0.00022476,2]
[381816664,1756357883411,-682.49,0.00022476,2]
[381816665,1756357883420,-1129.71,0.00022476,2]
[381816666,1756357883430,-1134.3,0.00022476,2]
[381816667,1756357883439,-490.66,0.00022476,2]
[381816668,1756357883449,-519.51,0.00022476,2]
[381816669,1756357883458,-480.0,0.00022476,2]
[381816670,1756357883468,-658.74,0.00022476,2]
[381816671,1756357883477,-480.0,0.00022476,2]
[381816672,1756357883487,-480.0,0.00022476,2]
[381816673,1756357883496,-739.51,0.00022476,2]
[381816674,1756357883506,-480.0,0.00022476,2]
[381816675,1756357883516,-480.0,0.00022476,2]
[381816676,1756357883525,-525.76,0.00022476,2]
[381816677,1756357883535,-480.0,0.00022476,2]
[381816678,1756357883544,-1627.79,0.00022476,2]
[381816679,1756357883554,-480.0,0.00022476,2]
[381816680,1756357883564,-767.73,0.00022476,2]
[381816681,1756357883573,-449.94805635,0.00022476,2]
[381816682,1756357883583,-480.0,0.00022476,2]
[381816683,1756357883592,-1532.08,0.00022476,2]
[381816684,1756357883601,-1503.05,0.00022476,2]
[381816685,1756357883610,-824.33,0.00022476,2]
[381816686,1756357883619,-489.36,0.00022476,2]
[381816687,1756357883629,-586.84,0.00022476,2]
[381816688,1756357883639,-3503.35,0.00022476,2]
[381816689,1756357883650,-503.75,0.00022476,2]
[381816690,1756357883660,-480.0,0.00022476,2]
[381816691,1756357883670,-761.51,0.00022476,2]
[381816692,1756357883679,-704.5,0.00022476,2]
[381816693,1756357883689,-723.72,0.00022476,2]
[381816694,1756357883699,-1276.85,0.00022476,2]
[381816695,1756357883708,-468.25144743,0.00022476,2]
[381816696,1756357883718,-290.1613484,0.00022476,2]
[381816697,1756357883728,-480.0,0.00022476,2]
[381816698,1756357883737,-1166.04,0.00022476,2]
[381816699,1756357883747,-1002.35,0.00022476,2]
[381816700,1756357883757,-1455.86,0.00022476,2]
[381816701,1756357883766,-819.21,0.00022476,2]
[381816702,1756357883776,-480.0,0.00022476,2]
[381816703,1756357883786,-2444.59,0.00022476,2]
[381816704,1756357883795,-766.24,0.00022476,2]
[381816705,1756357883805,-1830.55,0.00022476,2]
[381816706,1756357883814,-483.16339817,0.00022476,2]
[381816707,1756357883824,-735.26,0.00022476,2]
[381816708,1756357883834,-480.0,0.00022476,2]
[381816709,1756357883843,-523.99,0.00022476,2]
[381816710,1756357883853,-2483.8,0.00022476,2]
[381816711,1756357883862,-487.66,0.00022476,2]
[381816712,1756357883871,-1398.72,0.00022476,2]
[381816713,1756357883881,-480.0,0.00022476,2]
[381816714,1756357883891,-546.78,0.00022476,2]
[381816715,1756357883901,-480.0,0.00022476,2]
[381816716,1756357883910,-480.0,0.00022476,2]
[381816717,1756357883920,-666.93,0.00022476,2]
[381816718,1756357883930,-480.0,0.00022476,2]
[381816719,1756357883939,-480.0,0.00022476,2]
[381816720,1756357883949,-495.39,0.00022476,2]
[381816721,1756357883958,-4058.33,0.00022476,2]
[381816722,1756357883968,-737.84,0.00022476,2]
[381816723,1756357883977,-1036.6,0.00022476,2]
[381816724,1756357883987,-480.0,0.00022476,2]
[381816725,1756357883998,-528.58,0.00022476,2]
[381816726,1756357884008,-3488.45,0.00022476,2]
[381816727,1756357884017,-480.0,0.00022476,2]
[381816728,1756357884027,-480.0,0.00022476,2]
[381816729,1756357884038,-480.0,0.00022476,2]
[381816730,1756357884047,-2192.53,0.00022476,2]
[381816731,1756357884056,-834.38,0.00022476,2]
[381816732,1756357884066,-480.0,0.00022476,2]
[381816733,1756357884077,-614.2,0.00022476,2]
[381816734,1756357884087,-647.01,0.00022476,2]
[381816735,1756357884096,-603.43,0.00022476,2]
[381816736,1756357884106,-480.0,0.00022476,2]
[381816737,1756357884115,-609.37,0.00022476,2]
[381816738,1756357884124,-1642.89,0.00022476,2]
[381816739,1756357884134,-547.64,0.00022476,2]
[381816740,1756357884143,-808.8,0.00022476,2]
[381816741,1756357884155,-926.55,0.00022476,2]
[381816742,1756357884165,-1672.0,0.00022476,2]
[381816743,1756357884175,-1695.49,0.00022476,2]
[381816744,1756357884184,-621.31,0.00022476,2]
[381816745,1756357884194,-633.59,0.00022476,2]
[381816746,1756357884203,-1149.85,0.00022476,2]
[381816747,1756357884213,-480.0,0.00022477,2]
[381816748,1756357884222,-4914.21,0.00022477,2]
[381816749,1756357884232,-2549.75,0.00022477,2]
[381816750,1756357884242,-619.54,0.00022477,2]
[381816751,1756357884252,-4806.46,0.00022477,2]
[381816752,1756357884261,-637.66,0.00022477,2]
[381816753,1756357884271,-1581.21,0.00022477,2]
[381816754,1756357884281,-1167.81,0.00022479,2]
[381816755,1756357884290,-946.91,0.00022479,2]
[381816756,1756357884300,-609.78,0.00022479,2]
[381816757,1756357884310,-480.0,0.00022479,2]
[381816758,1756357884319,-500.0,0.00022482,2]
[381816759,1756357884329,-524.71,0.00022482,2]
[381816760,1756357884338,-655.02,0.00022482,2]
[381816761,1756357884347,-856.4,0.00022482,2]
[381816762,1756357884356,-514.53,0.00022482,2]
[381816763,1756357884366,-604.54,0.00022482,2]
[381816764,1756357884375,-526.58,0.00022482,2]
[381816765,1756357884384,-480.0,0.00022482,2]
[381816766,1756357884394,-480.0,0.00022482,2]
[381816767,1756357884405,-991.16,0.00022482,2]
[381816768,1756357884415,-488.73,0.00022482,2]
[381816769,1756357884424,-687.05,0.00022482,2]
[381816770,1756357884434,-815.5,0.00022482,2]
[381816771,1756357884443,-480.0,0.00022482,2]
[381816772,1756357884453,-795.63,0.00022482,2]
[381816773,1756357884462,-500.0,0.00022482,2]
[381816774,1756357884472,-480.0,0.00022482,2]
[381816775,1756357884481,-480.0,0.00022482,2]
[381816776,1756357884491,-1214.89,0.00022482,2]
[381816777,1756357884501,-757.81,0.00022482,2]
[381816778,1756357884510,-487.92,0.00022482,2]
[381816779,1756357884520,-503.45,0.00022482,2]
[381816780,1756357884529,-1130.61,0.00022482,2]
[381816781,1756357884539,-589.18,0.00022482,2]
[381816782,1756357884548,-610.99,0.00022482,2]
[381816783,1756357884557,-480.0,0.00022482,2]
[381816784,1756357884567,-480.0,0.00022482,2]
[381816785,1756357884576,-480.0,0.00022482,2]
[381816786,1756357884586,-562.98,0.00022482,2]
[381816787,1756357884596,-480.0,0.00022482,2]
[381816788,1756357884605,-480.0,0.00022482,2]
[381816789,1756357884615,-480.0,0.00022482,2]
[381816790,1756357884624,-667.81,0.00022482,2]
[381816791,1756357884639,-480.0,0.00022482,2]
[381816792,1756357884659,-480.0,0.00022482,2]
[381816793,1756357884669,-506.48,0.00022482,2]
[381816794,1756357884678,-708.89,0.00022482,2]
[381816795,1756357884688,-480.0,0.00022482,2]
[381816796,1756357884698,-480.0,0.00022482,2]
[381816797,1756357884708,-480.0,0.00022482,2]
[381816798,1756357884717,-596.55,0.00022482,2]
[381816799,1756357884726,-881.6,0.00022482,2]
[381816800,1756357884736,-521.32,0.00022482,2]
[381816801,1756357884745,-483.34290911,0.00022482,2]
[381816802,1756357884754,-662.51,0.00022482,2]
[381816803,1756357884763,-853.94,0.00022482,2]
[381816804,1756357884772,-684.51,0.00022482,2]
[381816805,1756357884782,-525.5,0.00022482,2]
[381816806,1756357884791,-599.49,0.00022482,2]
[381816807,1756357884800,-654.52,0.00022482,2]
[381816808,1756357884810,-510.29,0.00022482,2]
[381816809,1756357884820,-1154.7,0.00022482,2]
[381816810,1756357884830,-480.0,0.00022482,2]
[381816811,1756357884839,-480.0,0.00022482,2]
[381816812,1756357884848,-515.89,0.00022482,2]
[381816813,1756357884858,-480.0,0.00022482,2]
[381816814,1756357884867,-1092.0377655,0.00022491,2]
[381816815,1756357884877,-162.908015,0.00022505,2]
[381816816,1756357884887,-60586.6327026,0.00022508,2]
[381816817,1756357884897,-1504.82354479,0.00022516,2]
[381816818,1756357884908,-348.96036793,0.00022516,2]
[381816819,1756357884918,-167.98518684,0.00022516,2]
[381816820,1756357884927,-2011.1760143,0.00022516,2]
[381816821,1756357884937,-2000.0,0.00022516,2]
[381816822,1756357884947,-508.6012517,0.00022516,2]
[381816823,1756357884956,-2000.0,0.00022516,2]
[381816824,1756357884966,-1560.07191761,0.00022516,2]
[381816825,1756357884976,-683.28838346,0.00022516,2]
[381816826,1756357884985,-2000.0,0.00022516,2]
[381816827,1756357884997,-510.34617617,0.00022516,2]
[381816828,1756357885007,-637.49366838,0.00022516,2]
[381816829,1756357885018,-645.11635765,0.00022516,2]
[381816830,1756357885029,-2004.68295359,0.00022516,2]
[381816831,1756357885039,-2000.0,0.00022516,2]
[381816832,1756357885052,-1513.42447899,0.00022516,2]
[381816833,1756357885061,-513.25973383,0.00022521,2]
[381816834,1756357885071,-500.0,0.00022521,2]
[381816835,1756357885082,-256.263232,0.00022521,2]
[381816836,1756357885091,-500.78988638,0.00022521,2]
[381816837,1756357885101,-197.50478745,0.00022521,2]
[381816838,1756357885110,-502.48446753,0.00022521,2]
[381816839,1756357885119,-500.0,0.00022521,2]
[381816840,1756357885129,-151.0,0.00022521,2]
[381816841,1756357885139,-500.0,0.00022521,2]
[381816842,1756357885205,-151.0,0.00022521,2]
[381816843,1756357885214,-151.0,0.00022521,2]
[381816844,1756357885224,-151.0,0.00022521,2]
[381816845,1756357885234,-151.59436882,0.00022521,2]
[381816846,1756357885243,-199.47899243,0.00022521,2]
[381816847,1756357885253,-571.25348856,0.00022521,2]
[381816848,1756357885262,-152.0757675,0.00022521,2]
[381816849,1756357885271,-502.11909449,0.00022521,2]
[381816850,1756357885283,-1093.0,0.00022521,2]
[381816851,1756357885292,-153.42354929,0.00022521,2]
[381816852,1756357885302,-344.0071354,0.00022521,2]
[381816853,1756357885311,-155.78536609,0.00022521,2]
[381816854,1756357885321,-2310.22595781,0.00022564,2]
[381816855,1756357885330,-150.0,0.00022573,2]
[381816856,1756357885340,-480.0,0.0002258,2]
[381816857,1756357885349,-480.0,0.0002258,2]
[381816858,1756357885358,-805.95,0.0002258,2]
[381816859,1756357885367,-528.48,0.0002258,2]
[381816860,1756357885376,-480.0,0.0002258,2]
[381816861,1756357885386,-480.0,0.0002258,2]
[381816862,1756357885395,-480.0,0.0002258,2]
[381816863,1756357885406,-480.0,0.0002258,2]
[381816864,1756357885415,-588.99013972,0.0002258,2]
[381816865,1756357885425,-480.0,0.0002258,2]
[381816866,1756357885434,-480.0,0.0002258,2]
[381816867,1756357885444,-480.0,0.0002258,2]
[381816868,1756357885453,-480.0,0.0002258,2]
[381816869,1756357885462,-480.0,0.0002258,2]
[381816870,1756357885471,-480.0,0.0002258,2]
[381816871,1756357885480,-480.0,0.0002258,2]
[381816872,1756357885489,-533.88,0.0002258,2]
[381816873,1756357885499,-604.71,0.0002258,2]
[381816874,1756357885508,-480.0,0.0002258,2]
[381816875,1756357885517,-480.0,0.0002258,2]
[381816876,1756357885526,-480.0,0.0002258,2]
[381816877,1756357885536,-795.22,0.0002258,2]
[381816878,1756357885546,-358.984101,0.0002258,2]
[381816879,1756357885555,-697.35,0.0002258,2]
[381816880,1756357885565,-480.0,0.0002258,2]
[381816881,1756357885574,-480.0,0.0002258,2]
[381816882,1756357885583,-480.0,0.0002258,2]
[381816883,1756357885592,-480.0,0.0002258,2]
[381816884,1756357885602,-480.0,0.0002258,2]
[381816885,1756357885611,-480.0,0.0002258,2]
[381816886,1756357885621,-480.0,0.0002258,2]
[381816887,1756357885630,-480.0,0.0002258,2]
[381816888,1756357885639,-480.0,0.0002258,2]
[381816889,1756357885648,-529.5,0.0002258,2]
[381816890,1756357885659,-480.0,0.0002258,2]
[381816891,1756357885668,-480.0,0.0002258,2]
[381816892,1756357885677,-480.0,0.0002258,2]
[381816893,1756357885686,-480.0,0.0002258,2]
[381816894,1756357885695,-500.16,0.0002258,2]
[381816895,1756357885705,-597.76,0.0002258,2]
[381816896,1756357885714,-545.7,0.0002258,2]
[381816897,1756357885723,-899.98,0.0002258,2]
[381816898,1756357885732,-480.0,0.0002258,2]
[381816899,1756357885742,-492.04,0.0002258,2]
[381816900,1756357885752,-573.17,0.0002258,2]
[381816901,1756357885761,-480.0,0.0002258,2]
[381816902,1756357885779,-480.0,0.0002258,2]
[381816903,1756357885790,-554.12,0.0002258,2]
[381816904,1756357885800,-534.5,0.0002258,2]
[381816905,1756357885809,-477.61843749,0.0002258,2]
[381816906,1756357885819,-515.25,0.0002258,2]
[381816907,1756357885829,-522.11,0.0002258,2]
[381816908,1756357885838,-480.0,0.0002258,2]
[381816909,1756357885847,-510.37,0.0002258,2]
[381816910,1756357885856,-480.0,0.0002258,2]
[381816911,1756357885866,-624.42,0.0002258,2]
[381816912,1756357885875,-193.73373533,0.0002258,2]
[381816913,1756357885885,-480.0,0.0002258,2]
[381816914,1756357885894,-480.0,0.0002258,2]
[381816915,1756357885905,-818.02,0.0002258,2]
[381816916,1756357885914,-480.0,0.0002258,2]
[381816917,1756357885924,-480.0,0.0002258,2]
[381816918,1756357885933,-786.47,0.0002258,2]
[381816919,1756357885942,-7417.32,0.0002258,2]
[381816920,1756357885952,-1601.06,0.0002258,2]
[381816921,1756357885961,-6114.74,0.0002258,2]
[381816922,1756357885971,-804.83,0.00022582,2]
[381816923,1756357885981,-826.54,0.00022582,2]
[381816924,1756357885991,-1640.49,0.00022582,2]
[381816925,1756357886002,-1700.67,0.00022582,2]
[381816926,1756357886012,-480.0,0.00022582,2]
[381816927,1756357886022,-731.13,0.00022582,2]
[381816928,1756357886031,-1000.0,0.000226,2]
[381816929,1756357886040,-150.0,0.000226,2]
[381816930,1756357886050,-269.0,0.00022621,2]
[381816931,1756357886059,-168.0,0.00022631,2]
[381816932,1756357886068,-360.0,0.00022647,2]
[381816933,1756357886078,-250.87096343,0.00022651,71]
[381816934,1756357886088,-1800.0,0.00022654,2]
[381816935,1756357886098,-2169.42,0.00022654,2]
[381816936,1756357886108,-639.46,0.00022654,2]
[381816937,1756357886118,-1495.6,0.00022654,2]
[381816938,1756357886127,-515.47,0.00022654,2]
[381816939,1756357886136,-269.0,0.00022656,2]
[381816940,1756357886145,-224.052875,0.00022658,2]
[381816941,1756357886155,-179.691714,0.00022658,2]
[381816942,1756357886164,-500.226,0.00022675,2]
[381816943,1756357886174,-151.0,0.000227,7]
[381816944,1756357886184,-808.4342,0.000227,2]
[381816945,1756357886193,-808.4342,0.000227,2]
[381816946,1756357886202,-209.40437684,0.00022739,2]
[381816947,1756357886211,-480.0,0.0002275,2]
[381816948,1756357886221,-480.0,0.0002275,2]
[381816949,1756357886231,-786.65,0.0002275,2]
[381816950,1756357886241,-713.73,0.0002275,2]
[381816951,1756357886250,-480.0,0.0002275,2]
[381816952,1756357886260,-480.0,0.0002275,2]
[381816953,1756357886270,-480.0,0.0002275,2]
[381816954,1756357886280,-480.79,0.0002275,2]
[381816955,1756357886289,-480.0,0.0002275,2]
[381816956,1756357886299,-480.0,0.0002275,2]
[381816957,1756357886309,-648.17,0.0002275,2]
[381816958,1756357886319,-242.89462632,0.0002275,2]
[381816959,1756357886329,-480.0,0.0002275,2]
[381816960,1756357886339,-533.59,0.0002275,2]
[381816961,1756357886349,-480.0,0.0002275,2]
[381816962,1756357886359,-655.42,0.0002275,2]
[381816963,1756357886368,-480.0,0.0002275,2]
[381816964,1756357886378,-480.0,0.0002275,2]
[381816965,1756357886387,-944.76,0.0002275,2]
[381816966,1756357886397,-480.0,0.0002275,2]
[381816967,1756357886409,-480.0,0.0002275,2]
[381816968,1756357886419,-1375.55,0.0002275,2]
[381816969,1756357886429,-537.18,0.0002275,2]
[381816970,1756357886439,-504.38,0.0002275,2]
[381816971,1756357886448,-480.0,0.0002275,2]
[381816972,1756357886458,-790.41,0.0002275,2]
[381816973,1756357886468,-510.07,0.0002275,2]
[381816974,1756357886478,-480.0,0.0002275,2]
[381816975,1756357886487,-480.0,0.0002275,2]
[381816976,1756357886498,-498.02,0.0002275,2]
[381816977,1756357886508,-541.05,0.0002275,2]
[381816978,1756357886517,-487.28,0.0002275,2]
[381816979,1756357886527,-480.0,0.0002275,2]
[381816980,1756357886536,-633.32,0.0002275,2]
[381816981,1756357886546,-657.6,0.0002275,2]
[381816982,1756357886556,-480.0,0.0002275,2]
[381816983,1756357886566,-644.12,0.0002275,2]
[381816984,1756357886575,-560.98,0.0002275,2]
[381816985,1756357886585,-480.0,0.0002275,2]
[381816986,1756357886595,-574.0,0.0002275,2]
[381816987,1756357886604,-480.0,0.0002275,2]
[381816988,1756357886614,-502.35,0.0002275,2]
[381816989,1756357886624,-480.0,0.0002275,2]
[381816990,1756357886634,-480.0,0.0002275,2]
[381816991,1756357886643,-480.0,0.0002275,2]
[381816992,1756357886653,-1511.51,0.0002275,2]
[381816993,1756357886663,-497.56,0.0002275,2]
[381816994,1756357886672,-957.08,0.0002275,2]
[381816995,1756357886683,-1082.64,0.0002275,2]
[381816996,1756357886693,-527.16,0.0002275,2]
[381816997,1756357886703,-480.0,0.0002275,2]
[381816998,1756357886712,-480.0,0.0002275,2]
[381816999,1756357886722,-865.85,0.0002275,2]
[381817000,1756357886732,-404.89000072,0.0002275,2]
[381817001,1756357886792,1669.37,0.0002001,2]
[381817002,1756357886824,480.0,0.0002001,2]
[381817003,1756357886918,480.0,0.0002001,2]
[381817004,1756357887089,-0.00522889,0.00020284,2]
[381817005,1756357887149,480.0,0.0002001,2]
[381817006,1756357887282,480.0,0.0002001,2]
[381817007,1756357887367,2126.83,0.0002001,2]
[381817008,1756357887521,480.0,0.0002001,2]
[381817009,1756357887621,541.94,0.0002001,2]
[381817010,1756357887634,-1000.0,0.00020014,2]
[381817011,1756357887644,-1669.36477111,0.00020284,2]
[381817012,1756357887654,-481.20565846,0.00020284,2]
[381817013,1756357887664,-481.82394962,0.00020284,2]
[381817014,1756357887673,-481.18851892,0.00020284,2]
[381817015,1756357887683,-480.0,0.00020284,2]
[381817016,1756357887692,-2126.83,0.00020284,2]
[381817017,1756357887702,-1669.37,0.00020558,2]
[381817018,1756357887712,-480.0,0.00020558,2]
[381817019,1756357887721,-1396.39203289,0.00020558,2]
[381817020,1756357887768,573.14391499,0.0002001,2]
[381817021,1756357887870,480.0,0.0002001,2]
[381817022,1756357888119,480.0,0.0002001,2]
[381817023,1756357888163,480.0,0.0002001,2]
[381817024,1756357888214,480.0,0.0002001,2]
[381817025,1756357888670,480.0,0.0002001,2]
[381817026,1756357888854,480.0,0.0002001,2]
[381817027,1756357888898,480.0,0.0002001,2]
[381817028,1756357889083,542.84,0.0002001,2]
[381817029,1756357889114,480.0,0.0002001,2]
[381817030,1756357889283,480.0,0.0002001,2]
[381817031,1756357889328,480.0,0.0002001,2]
[381817032,1756357889442,480.0,0.0002001,2]
[381817033,1756357889480,480.0,0.0002001,2]
[381817034,1756357889648,480.0,0.0002001,2]
[381817035,1756357889688,480.0,0.0002001,2]
[381817036,1756357889917,480.0,0.0002001,2]
[381817037,1756357889969,300.0,0.00020009,2]
[381817038,1756357890096,480.0,0.0002001,2]
[381817039,1756357890126,2757.7729804,0.00019592,2]
[381817040,1756357890235,480.0,0.0002001,2]
[381817041,1756357890321,480.0,0.0002001,2]
[381817042,1756357890416,438.39207295,0.0002001,2]
[381817043,1756357890607,480.0,0.0002001,2]
[381817044,1756357890809,480.0,0.0002001,2]
[381817045,1756357890844,480.0,0.0002001,2]
[381817046,1756357891159,480.0,0.0002001,2]
[381817047,1756357891254,480.0,0.0002001,2]
[381817048,1756357891403,480.0,0.0002001,2]
[381817049,1756357891439,480.0,0.0002001,2]
[381817050,1756357891530,480.82624955,0.0002001,2]
[381817051,1756357891563,480.0,0.0002001,2]
[381817052,1756357891635,480.0,0.0002001,2]
[381817053,1756357891696,162907.74176519,0.00019913,2]